Cogmind - Beta 14 @@@ ROGUE MODE // 2025.03.08 @ 22:37:18 Player: w0rldd3str0y3r Result: Self-destructed Performance ------------- Evolutions (2) 1000 Regions Visited (5) 1000 Robots Destroyed (48) 240 Value Destroyed (972) 972 Prototype IDs (24) 480 Alien Tech Used (0) 0 Bonus (411) 411 TOTAL SCORE: 4103 Bonus ------- Follower Combat Kills 111 Aligned with FarCom 300 Cogmind --------- Core Integrity 417/550 Matter 234/300 Energy 265/265 System Corruption 0% Temperature Cool (0) Movement Treading (240) Ox1 Location -8/Materials Parts ------- > --- POWER (1) -------- Improved Ion Engine > --- PROPULSION (5) --- Light Treads Light Treads Light Treads Aluminum Leg Titanium Leg > --- UTILITY (3) ------ Huge Storage Unit Machine Analyzer Transport Network Coupler > --- WEAPON (2) ------- Makeshift Shrapnel Gun Scythe > --- INVENTORY (25) --- Light Ion Engine Hover Unit Hover Unit Cesium-ion Thruster Large Storage Unit High-capacity Storage Unit Medium Matter Pod (37) Trap Scanner Seismic Detector Melee Analysis Suite Melee Analysis Suite Melee Analysis Suite Melee Analysis Suite Melee Analysis Suite Improved Light Armor Plating Hacking Suite PSU Rigger EM Pulse Cannon Improved Assault Rifle High-powered Shotgun High-powered Shotgun Shock Bomb Launcher Improved Datajack Heavy Mace Blade Saw Peak State ------------ > --- POWER ------------ Improved Ion Engine > --- PROPULSION ------- Light Treads Light Treads Aluminum Leg Aluminum Leg Aluminum Leg > --- UTILITY ---------- Huge Storage Unit Targeting Computer PSU Rigger > --- WEAPON ----------- Makeshift Shrapnel Gun Hammer > --- INVENTORY -------- Cesium-ion Thruster Improved Heat Sink Large Storage Unit High-capacity Storage Unit Medium Matter Pod Trap Scanner Machine Analyzer Improved Terrain Scanner Seismic Detector Targeting Computer Targeting Computer Melee Analysis Suite Melee Analysis Suite Melee Analysis Suite Melee Analysis Suite Melee Analysis Suite Core Shielding Improved Light Armor Plating EM Pulse Cannon Improved Assault Rifle High-powered Shotgun High-powered Shotgun Shock Bomb Launcher Scythe Blade Saw [Rating: 28] Favorites ----------- Power Ion Engine Engine Ion Engine Propulsion Light Treads Treads Light Treads Leg Aluminum Leg Wheel Compact Wheel Utility Huge Storage Unit Device Seismic Detector Storage Huge Storage Unit Processor Machine Analyzer Protection Light Armor Plating Weapon Makeshift Shrapnel Gun Energy Gun Beamcaster Energy Cannon Beam Cannon Ballistic Gun Makeshift Shrapnel Gun Launcher Grenade Launcher Impact Weapon Hammer Slashing Weapon Blade Saw Build | -11 -10 -10 -10 -9 -8 ------- Run | Yrd Mat Min Exi Min Mat Slots Evolved 4 | . . . . . 4 Power . | . . . . . . Propulsion 3 | . . . . . 3 Utility 1 | . . . . . 1 Weapon . | . . . . . . Parts Attached 75 | 7 9 8 . 2 49 Power 3 | 1 1 . . . 1 Engine 3 | 1 1 . . . 1 Core . | . . . . . . Reactor . | . . . . . . Propulsion 18 | 2 2 . . . 14 Treads 8 | 1 1 . . . 6 Leg 6 | . . . . . 6 Wheel 4 | 1 1 . . . 2 Hover . | . . . . . . Flight . | . . . . . . Utility 21 | 2 3 2 . . 14 Device 10 | 1 1 1 . . 7 Storage 3 | 1 2 . . . . Processor 3 | . . . . . 3 Hackware . | . . . . . . Protection 5 | . . 1 . . 4 Artifact . | . . . . . . Weapon 33 | 2 3 6 . 2 20 Energy Gun 1 | . . 1 . . . Energy Cannon 5 | . . 1 . . 4 Ballistic Gun 14 | 2 1 3 . 1 7 Ballistic Cannon . | . . . . . . Launcher 6 | . 2 1 . 1 2 Special Weapon . | . . . . . . Impact Weapon 2 | . . . . . 2 Slashing Weapon 5 | . . . . . 5 Piercing Weapon . | . . . . . . Special Melee Weapon . | . . . . . . Unidentified Prototypes 1 | . . . . . 1 Parts Lost 10 | . 1 . . . 9 Power . | . . . . . . Propulsion 8 | . 1 . . . 7 Utility 1 | . . . . . 1 Weapon 1 | . . . . . 1 Highest Loss Streak 5 | . 1 . . . 5 To Critical Strikes . | . . . . . . Average Slot Usage (%) 97 | . 100 98 100 100 95 Engine 10 | . 14 14 14 14 8 Treads 16 | . 13 14 14 14 18 Leg 8 | . . . . . 16 Wheel 9 | . 14 14 14 14 5 Device 4 | . 14 10 . . 2 Storage 11 | . 14 14 14 14 9 Processor 5 | . . . . . 10 Protection 5 | . . 2 14 14 4 Energy Cannon 1 | . . 7 . . 1 Ballistic Gun 14 | . 25 13 28 27 8 Launcher 1 | . 3 5 . . . Impact Weapon 3 | . . . . . 5 Peak Build Rating 28 | 8 8 16 14 14 28 Average Rating 17 | 5 7 11 13 13 23 On Entrance 9 | . 8 8 13 14 14 Naked Turns . | . . . . . . Heaviest Build 97 | 12 90 94 92 93 97 Greatest Support 60 | 20 32 16 16 16 60 Greatest Overweight (x) 9 | . 5 5 5 5 9 Average Overweight (x) 2 | . . 5 5 5 2 Largest Inventory Capacity 25 | 8 25 25 25 25 25 Average Capacity 22 | 7 12 25 25 25 25 Most Carried 25 | 8 14 25 25 25 25 Average Carried 21 | 4 8 22 24 25 24 Final Capacity 25 | 8 25 25 25 25 25 Final Carried 25 | 8 14 25 25 25 25 Class Distribution -------------------- 64% | Mutant 26% | Scavenger-Mutant 6% | Scavenger-Skirmisher 3% | Scavenger-Assassin Dominant Class ---------------- Mutant | -10/Materials Mutant | -10/Mines Mutant | -10/Exiles Mutant | -9/Mines Scavenger-Mutant | -8/Materials Resources | -11 -10 -10 -10 -9 -8 ----------- Run | Yrd Mat Min Exi Min Mat Matter Collected 1504 | 260 135 276 . . 833 Remotely . | . . . . . . Salvage Created 1161 | 122 150 168 . 14 707 Parts 73 | 6 14 13 . 3 37 Haulers Intercepted 3 | . 1 . . . 2 Recyclers Shooed 4 | 2 . . . . 2 Parts Field Recycled . | . . . . . . Retrieved Matter . | . . . . . . Parts Self-Destructed . | . . . . . . Prevented . | . . . . . . Kills | -11 -10 -10 -10 -9 -8 ------- Run | Yrd Mat Min Exi Min Mat Combat Hostiles Destroyed 26 | . 5 5 . 4 12 Melee 1 | . . . . . 1 Guns 9 | . 1 1 . . 7 AOE 16 | . 4 4 . 4 4 Classes Destroyed 11 | 2 5 . . . 4 Worker 2 | . . . . . 2 Builder 5 | . 1 . . . 4 Tunneler 3 | 2 . 1 . . . Hauler 3 | . 1 . . . 2 Recycler 4 | 1 . 1 . . 2 Mechanic 1 | . . . . . 1 Operator 2 | . . . . . 2 Watcher 2 | . 1 . . . 1 Swarmer 12 | . 3 3 . 4 2 Grunt 13 | . 2 2 . . 9 Sentry 1 | . . . . . 1 Best Kill Streak 5 | 2 5 4 . 4 3 Combat Bots Only 4 | . 3 3 . 4 2 Max Kills in Single Turn 3 | 1 2 3 . 2 2 Gunslinging . | . . . . . . Exploded 2 | . 2 2 . 2 1 Melee 1 | . . . . . 1 Uniques/NPCs Destroyed . | . . . . . . Combat | -11 -10 -10 -10 -9 -8 -------- Run | Yrd Mat Min Exi Min Mat Hostile Shots Fired 168 | . 21 5 . 6 136 Missed 55 | . 4 4 . 2 45 Damage Taken 1758 | . 227 9 . 33 1489 Core 204 | . 64 . . 7 133 Absorbed by Shields . | . . . . . . Core Remaining (%) 85 | 100 . . . 71 . Volleys Fired 99 | 10 25 9 . 3 52 Largest 2 | 2 2 2 . 1 2 Hottest 80 | 40 50 80 . 30 63 Shots Fired 142 | 20 48 13 . 3 58 Gun 100 | 20 40 6 . . 34 Cannon 11 | . . 3 . . 8 Launcher 31 | . 8 4 . 3 16 Special . | . . . . . . Kinetic 100 | 20 40 6 . . 34 Thermal 3 | . . 3 . . . Explosive 31 | . 8 4 . 3 16 Electromagnetic 8 | . . . . . 8 Robot Hit Streak 10 | 4 7 8 . . 10 Robot Miss Streak 4 | 4 3 2 . . 4 Penetration Max . | . . . . . . Secondary Targets . | . . . . . . Shots Hit Robots 93 | 10 28 7 . . 48 Core Hits 82 | 4 13 9 . 4 52 Critical Kills 1 | . . . . . 1 Critical Parts Destroyed . | . . . . . . Critical Strikes 1 | . . . . . 1 Smash 1 | . . . . . 1 Melee Attacks 29 | . . . . . 29 Impact 13 | . . . . . 13 Slashing 16 | . . . . . 16 Piercing . | . . . . . . Sneak Attacks 6 | . . . . . 6 Combat Hostiles . | . . . . . . Follow-up Attacks 1 | . . . . . 1 Damage Inflicted 3375 | 107 605 365 . 80 2218 Guns 1055 | 107 220 56 . . 672 Cannons 162 | . . 18 . . 144 Explosions 1574 | . 385 288 . 80 821 Melee 567 | . . . . . 567 Ramming 17 | . . 3 . . 14 Kinetic 1055 | 107 220 56 . . 672 Thermal 18 | . . 18 . . . Explosive 1574 | . 385 288 . 80 821 Electromagnetic 144 | . . . . . 144 Impact 341 | . . . . . 341 Slashing 226 | . . . . . 226 Piercing . | . . . . . . Highest Corruption . | . . . . . . Average Corruption . | . . . . . . Corruption Purged . | . . . . . . Corruption Blocked . | . . . . . . Overload Shots . | . . . . . . Overflow Damage 197 | . 22 46 . 8 121 Projectiles . | . . . . . . Explosions 97 | . 22 46 . 8 21 Melee 100 | . . . . . 100 Knockbacks 1 | . . . . . 1 Impact 1 | . . . . . 1 Kinetic . | . . . . . . Secondary . | . . . . . . Self-Inflicted Damage 76 | . 51 . . . 25 Shots 5 | . 3 . . . 2 Rammed 3 | . . 1 . . 2 Targets Rammed 4 | . . 1 . . 3 Kicked . | . . . . . . Crushed 1 | . . . . . 1 Highest Temperature 37 | . 25 3 . . 37 Average Temperature 11 | . 9 2 . . 14 Received Heat Transfer 897 | . 69 . . . 828 Siege Activations . | . . . . . . Robots Corrupted 2 | . . . . . 2 Combat Hostiles . | . . . . . . Parts Fried 2 | . . . . . 2 Impact Corruptions 3 | . . . . . 3 Robots Melted . | . . . . . . Combat Hostiles . | . . . . . . Parts Melted . | . . . . . . Heat Transferred 37 | . . 37 . . . Parts Sabotaged . | . . . . . . Parts Stolen . | . . . . . . Parts Stripped . | . . . . . . Power Chain Reactions . | . . . . . . Alert | -11 -10 -10 -10 -9 -8 ------- Run | Yrd Mat Min Exi Min Mat Peak Influence 325 | 15 188 145 . 120 325 Initial 46 | . 9 20 . . 46 Average 132 | 6 110 52 . 89 174 Maximum Alert Level 1 | . . . . . 1 Low Security (%) 80 | 100 100 100 . 100 66 Level 1 19 | . . . . . 33 Level 2 . | . . . . . . Level 3 . | . . . . . . Level 4 . | . . . . . . Level 5 . | . . . . . . High Security . | . . . . . . Max Security . | . . . . . . Squads Dispatched 6 | . . . . . 6 Investigation . | . . . . . . Extermination . | . . . . . . Reinforcement 5 | . . . . . 5 Assault . | . . . . . . Garrison 1 | . . . . . 1 Intercept . | . . . . . . Searches Triggered . | . . . . . . Construction Impeded 2 | . . . . . 2 Haulers Reinforced . | . . . . . . Active Scanning Responses . | . . . . . . Cargo Convoy Interrupts . | . . . . . . Stealth | -11 -10 -10 -10 -9 -8 --------- Run | Yrd Mat Min Exi Min Mat Distress Signals 2 | . . . . . 2 Communications Jammed . | . . . . . . Distress Signals . | . . . . . . Times Spotted 51 | . 10 7 . 4 30 Peak Tracking Total 5 | . 3 3 . 4 5 Tactical Retreats 3 | . . . . . 3 Traps | -11 -10 -10 -10 -9 -8 ------- Run | Yrd Mat Min Exi Min Mat Traps Triggered . | . . . . . . Indirectly . | . . . . . . Trap Hack Attempts . | . . . . . . Triggered . | . . . . . . Disarmed . | . . . . . . Reprogrammed . | . . . . . . Reused . | . . . . . . Traps Extracted . | . . . . . . Installed . | . . . . . . Triggered . | . . . . . . Objects Rigged 6 | . . . . . 6 Exploded 5 | . . . . . 5 Machines | -11 -10 -10 -10 -9 -8 ---------- Run | Yrd Mat Min Exi Min Mat Machines Disabled 4 | . 2 . . . 2 Max in Single Turn 1 | . 1 . . . 1 Machines Repaired . | . . . . . . Machines Dismantled . | . . . . . . Machines Sabotaged . | . . . . . . Overloaded Fab Kills . | . . . . . . Hacking | -11 -10 -10 -10 -9 -8 --------- Run | Yrd Mat Min Exi Min Mat Machines Accessed 5 | . 1 . 1 . 3 Terminals 4 | . 1 . . . 3 Fabricators . | . . . . . . Repair Stations . | . . . . . . Recycling Units . | . . . . . . Scanalyzers . | . . . . . . Garrison Access . | . . . . . . Total Hacks 11 | . 4 . 1 . 6 Successful 6 | . 1 . 1 . 4 Failed 5 | . 3 . . . 2 Catastrophic . | . . . . . . Database Lockouts . | . . . . . . Manual 8 | . 4 . 1 . 3 Terminals 10 | . 4 . . . 6 Fabricators . | . . . . . . Repair Stations . | . . . . . . Recycling Units . | . . . . . . Scanalyzers . | . . . . . . Garrison Access . | . . . . . . Terminal Hacks 4 | . 1 . 1 . 2 Robot Analysis 1 | . . . . . 1 Branch Access Points 1 | . 1 . . . . Hauler Manifests 1 | . . . . . 1 Derelict Proto ID Bank 1 | . . . 1 . . Fabricator Hacks . | . . . . . . Repair Station Hacks . | . . . . . . Recycling Unit Hacks . | . . . . . . Scanalyzer . | . . . . . . Garrison Access Hacks . | . . . . . . Unauthorized Hacks 2 | . . . . . 2 Terminals 2 | . . . . . 2 Assimilate 1 | . . . . . 1 Operators 1 | . . . . . 1 Fabricators . | . . . . . . Repair Stations . | . . . . . . Recycling Units . | . . . . . . Scanalyzers . | . . . . . . Garrison Access . | . . . . . . Data Cores Recovered . | . . . . . . Used . | . . . . . . Hacking Detections 3 | . 1 . . . 2 Full Trace Events . | . . . . . . Feedback Events . | . . . . . . Feedback Blocked . | . . . . . . Robot Schematics Acquired . | . . . . . . Robots Built . | . . . . . . Authchips . | . . . . . . Time . | . . . . . . Total Robot Build Rating . | . . . . . . Part Schematics Acquired . | . . . . . . Parts Built . | . . . . . . Authchips . | . . . . . . Time . | . . . . . . Total Part Build Rating . | . . . . . . Parts Repaired . | . . . . . . Time . | . . . . . . Parts Recycled . | . . . . . . Recycled Matter . | . . . . . . Retrieved Matter . | . . . . . . Retrieved Components . | . . . . . . Parts Scanalyzed . | . . . . . . Part Schematics Acquired . | . . . . . . Parts Damaged . | . . . . . . Bothacking | -11 -10 -10 -10 -9 -8 ------------ Run | Yrd Mat Min Exi Min Mat Used RIF Installer . | . . . . . . Robots Hacked . | . . . . . . Non-combat . | . . . . . . Combat . | . . . . . . Robot Hacks Applied . | . . . . . . Relay Couplers Released . | . . . . . . Fabnet Peak Effective % . | . . . . . . Robots Rewired . | . . . . . . Allies Hacked . | . . . . . . Hacks Repelled . | . . . . . . Allies | -11 -10 -10 -10 -9 -8 -------- Run | Yrd Mat Min Exi Min Mat Total Allies 3 | . . . . 3 . Largest Group 3 | . . . . 3 3 Highest-Rated Group 40 | . . . . 40 40 Highest-Rated Ally 16 | . . . . 16 16 Total Orders . | . . . . . . Ally Attacks 15 | . . . . . 15 Total Damage 154 | . . . . . 154 Kills 3 | . . . . . 3 Allies Corrupted . | . . . . . . Allies Melted . | . . . . . . Intel | -11 -10 -10 -10 -9 -8 ------- Run | Yrd Mat Min Exi Min Mat Robot Analysis Total 1 | . . . . . 1 Derelict Logs Recovered 1 | . . 1 . . . Drone Launches . | . . . . . . Drone Recoveries . | . . . . . . Exploration | -11 -10 -10 -10 -9 -8 ------------- Run | Yrd Mat Min Exi Min Mat Turns Passed 4307 | 143 557 631 463 282 2231 Spaces Moved 2018 | 97 404 331 263 156 767 Core 5 | 5 . . . . . Treads 399 | 4 . . . . 395 Legs 29 | . . . . . 29 Wheels 1585 | 88 404 331 263 156 343 Hover . | . . . . . . Flight . | . . . . . . Fastest Speed 50 | 50 100 175 175 175 116 Average Speed 177 | 99 113 175 175 175 224 Slowest Speed 750 | 160 175 175 175 175 750 Overloaded Moves . | . . . . . . Propulsion Burnouts . | . . . . . . Robots Hopped . | . . . . . . Cave-ins Triggered . | . . . . . . Exploration Rate (%) 48 | 5 56 71 61 53 44 Regions Visited 5 Branch Regions 3 Pre-discovered Areas 1 | . . 1 . . . Known Exits Taken 1 | . 1 . . . . Unknown Exits Taken 4 | 1 . 1 1 1 . Scrap Searched 2 | . . 2 . . . Spaces Dug 22 | . . 9 . . 13 Terrain Destroyed 183 | . 38 21 . 18 106 Melee 13 | . . . . . 13 Projectile . | . . . . . . AOE 170 | . 38 21 . 18 93 Terrain Rammed . | . . . . . . Walls Destroyed . | . . . . . . Machines Disabled . | . . . . . . Actions | -11 -10 -10 -10 -9 -8 --------- Run | Yrd Mat Min Exi Min Mat Total 2538 | 121 459 364 268 161 1165 Wait 205 | . . 2 . 1 202 Move 2013 | 96 403 330 262 155 767 Hop . | . . . . . . Pick Up 58 | 8 12 11 3 . 24 Fast Attach 31 | 7 2 2 . . 20 Attach 8 | . 1 . . . 7 Detach 7 | . 1 1 . . 5 Swap 36 | . 6 6 . 2 22 Drop 44 | . 9 2 3 . 30 Fire 99 | 10 25 9 . 3 52 Melee 27 | . . . . . 27 Ram . | . . . . . . Kick . | . . . . . . Crush 4 | . . 1 . . 3 Escape Stasis . | . . . . . . Rewire . | . . . . . . Trap 6 | . . . . . 6 Miscellaneous . | . . . . . . Route ------- -11/Scrapyard -10/Materials (discovered 4 exits: [*Mat x2] / *Min x2) -10/Mines (discovered 2 exits: [*Mat] / *Exi) -10/Exiles (discovered 2 exits: [*Min x2]) -9/Mines -8/Materials History --------- Turn | Location | Event 12 | -11/Scrapyard | Discovered new exit (range 16) 144 | -11/Scrapyard | Entered Materials 151 | -10/Materials | Identified exit to Mines 313 | -10/Materials | Build established: Mutant 345 | -10/Materials | Discovered new exit (range 5) 533 | -10/Materials | Discovered new exit (range 10) 701 | -10/Materials | Entered Mines 797 | -10/Mines | Joined a pair of Derelicts in attacking an 0b10 outpost 1028 | -10/Mines | Discovered new exit (range 15) 1161 | -10/Mines | Learned location of Zion (-6) 1194 | -10/Mines | A weapon hastily lodged in a ceiling crevice suddenly fell to the ground 1325 | -10/Mines | Deemed a non-threat by the Exiles lab entrance 1325 | -10/Mines | Discovered new exit (range 5) 1332 | -10/Mines | Entered Exiles 1355 | -10/Exiles | Discovered new exit (range 15) 1376 | -10/Exiles | Met 8R-AWN 1404 | -10/Exiles | Met EX-HEX 1457 | -10/Exiles | Met EX-BIN 1481 | -10/Exiles | Aligned with FarCom system 1483 | -10/Exiles | Given EX-Vault access code 1528 | -10/Exiles | Opened EX-Vault 1539 | -10/Exiles | Found PSU Rigger 1612 | -10/Exiles | Warned to stay clear of 0b10 Research branches 1666 | -10/Exiles | Met EX-DEC 1771 | -10/Exiles | Discovered new exit (range 11) 1795 | -10/Exiles | Left Exiles lab with PSU Rigger 1795 | -10/Exiles | Entered Mines 1797 | -9/Mines | Assisted by bots powering up and referring to "LRC-V3" 2046 | -9/Mines | Discovered new exit (range 16) 2068 | -9/Mines | Assembled infested the area 2077 | -9/Mines | Entered Materials 2077 | -8/Materials | Accompanied by 3 allies 2077 | -8/Materials | Evolved 4 slots: Propulsion x3, Utility x1 2566 | -8/Materials | Garrison activated, responded to threat 2663 | -8/Materials | Lost 5 parts (3n1u1w) 3191 | -8/Materials | Build established: Scavenger-Mutant 4308 | -8/Materials | Self-destructed Last Messages --------------- 03865_ K-01 Serf collects debris. 03867_ Acquired Lgt. Treads. 03870_ K-01 Serf collects debris. 03878_ K-01 Serf cleans the Hadron Collector. 03994_ Electrolysis Chamber disabled. 04004_ K-01 Serf collects debris. 04004_ Crushed K-01 Serf. 04004_ K-01 Serf destroyed. 04005_ Extracted 50 matter. 04007_ A-02 Transporter destroyed. 04012_ Dropped Lgt. Treads. 04016_ Acquired Lgt. Treads. 04022_ Discarded Targeting Computer. 04027_ Acquired Transport Network Coupler. 04055_ Slammed into W-25 Informer. 04233_ >> Machine Analyzer network decryption results: 04233_ Terminal x1 04294_ >> Machine Analyzer network decryption results: 04294_ Terminal x2 04302_ U-05 Engineer builds a Wall. Map ----- +----------------------------------------------------+ | ?????????????????????????????????????????????????? | | ?????????????????????????????????????????????????? | | ?????????????????????????????????????????????????? | | ?????????????????????????????????????????????????? | | ?????????????????????????????????????????????????? | | ?????????????????????????????????????????????????? | | ?????????????????????????????????????????????????? | | ???????????????????????""""??????????????????????? | | ???????????????????????""""??????????????????????? | | ???????????????????????""""??????????????????????? | | ???????????????????????????+?????????????????????? | | ????????????????????????#?? ?????????????????????? | | ??????????????????????"T"## ?????????????????????? | | ?????????????????s?????? ! ??????Y??????????????? | | ?????????????????s?????? ?????????????????????? | | ??????????????????????""" ] ?????????????????????? | | ????????????????#?s? """ ???""????????????????? | | ????????????????# """ #???"T????????????????? | | ?????"""???##???# #???""????????????????? | | ?????"""??? ????? #?????????????????????? | | ?????"""??# #??????#o "T" #####+#???????????????? | | ??????????# #??????? """ ????????????????? | | ??????????# #????g???? ??????????????????? | | ########??# #?????bg???? ???a????????????????? | | # #### #????????#######?????????????????????? | | # # +????????# @# ???????????????????? | | # # #????????# #!"""?????????????????# | | # # ########## #?"""""???????????????# | | # + + #?"""""???????????????# | | # # ############# #?? ????????"""?""" # | | ##+##### ########????# " #?"""""???????"""?"""?# | | + ##[ [ #????# T #?"""""???????"""?"""?# | | # ######## #????# " #?"""""???????????????# | | ?# #??????# #????# #???????????????#?????# | | ?# #??????# """ #????######???????????????#??#??? | | ##+######## """ #???????????????????????????????? | | # ## """ #???????###??????????????????????# | | # ## #????####"####???????#??????????? | | # """ ## """ #????#" #??????????????????? | | # """ ## """ #????## ########????#??????? | | # """ ## """ #?????# # #???????????? | | # ## !! #?????# # #??#????????? | | # """ ## !!#?????# +! """ #????????#### | | # """ ####+####????# #!!""" #???#?######## | | # """ # ! #????####+### !""" #?????# # | | # # ####### # #?????# ! # | | # """" # ^ ##+###########= ! / | | + """" + ^ ] T [ = [+** ] # | | # """" # ^ ############## !=! # | | # # #######[ #??????#????## ! !# | +----------------------------------------------------+ Best States ------------- Heat Dissipation 45 Energy Generation 12 Energy Capacity 265 Matter Stores 300 Matter Capacity 300 Sight Range 16 Terrain Scan Range 16 Terrain Scan Density 10 Armor Coverage 300 Resistance: EM 15 Evasion (%) 40 Targeting Accuracy 5 Recoil Reduction 3 Item Schematics ----------------- None Robot Schematics ------------------ None Fabricated ------------ Nothing Alien Tech Used ----------------- None Achievements -------------- None Challenges ------------ None Game ------ Seed RainbowLargeRouter Manual? 0 Play Time 00:28:03 Cumulative 61.2 hours Start 2025.03.08 @ 17:22:29 End 2025.03.08 @ 22:37:18 Sessions 5 Manual Loads 0 Difficulty Rogue Special Mode None Game No. 67 Rogue 67 Adventurer 0 Explorer 0 Win Type - Total 0 Types 0/0/0/0/0/0/0/0/0 Lore% 35 Gallery% 44 Achievement% 37 Wizard Run 0 Options --------- Layout 0 ASCII 0 Keyboard 1 Movement Numpad Keybinds 0 Fullscreen 1 Font 18/SmallcapsGlow Map View 76x50 Zoom Use 0% Tactical HUD 1 Map Filters NONE Filters NONE Steam 1 RUN: 75110961-4ba2-4926-a753-e42c3509794c